Workbook

Sheet Feuil1
CV2: =COLUMN() -> 100 | DP2: AIRBUS GROUP (EX-EADS)
CV12: ACCORHOTELS | CX12: ACCORHOTELS- | DF12: 14 | DG12: =DF12+43 -> 57 | DH12: 100
CV13: AIR LIQUIDE | CX13: AIR LIQUIDE- | DF13: =DH12+43 -> 143 | DG13: =DF13+43 -> 186 | DH13: =DG13+43 -> 229 | BFI13: Ouv Cac-Prem+ | BIJ13: Ouv Cac-Prem- | BLK13: Ouv Cac+Prem- | BOL13: Ouv Cac+Prem+
CV14: AIRBUS GROUP (EX-EADS) | CX14: AIRBUS GROUP (EX-EADS)- | DF14: =DH13+43 -> 272 | DG14: =DF14+43 -> 315 | DH14: 358
CV15: ALCATEL-LUCENT | CX15: ALCATEL-LUCENT- | DF15: 401 | DG15: =DF15+43 -> 444 | DH15: 487
CV16: ALSTOM | CX16: ALSTOM- | DF16: 530 | DG16: =DF16+43 -> 573 | DH16: 616
CV17: ARCELORMITTAL | CX17: ARCELORMITTAL- | DF17: 659 | DG17: =DF17+43 -> 702 | DH17: 745
CV18: AXA | CX18: AXA- | DF18: 788 | DG18: =DF18+43 -> 831 | DH18: 874
CV19: BNP PARIBAS | CX19: BNP PARIBAS- | DF19: 917 | DG19: =DF19+43 -> 960 | DH19: 1003
CV20: BOUYGUES | CX20: BOUYGUES- | DF20: 1046 | DG20: =DF20+43 -> 1089 | DH20: 1132
CV21: CAPGEMINI | CX21: CAPGEMINI- | DF21: 1175 | DG21: =DF21+43 -> 1218 | DH21: 1261
CV22: CARREFOUR | CX22: CARREFOUR- | DF22: 1304 | DG22: =DF22+43 -> 1347 | DH22: 1390
CV23: CREDIT AGRICOLE | CX23: CREDIT AGRICOLE- | DF23: 1433 | DG23: =DF23+43 -> 1476 | DH23: 1519
CV24: DANONE | CX24: DANONE- | DF24: 1562 | DG24: =DF24+43 -> 1605 | DH24: 1648
CV25: EDF | CX25: EDF- | DF25: 1691 | DG25: =DF25+43 -> 1734 | DH25: 1777
CV26: ESSILOR INTERNATIONAL | CX26: ESSILOR INTERNATIONAL- | DF26: 1820 | DG26: =DF26+43 -> 1863 | DH26: 1906
CV27: GDF SUEZ | CX27: GDF SUEZ- | DF27: 1949 | DG27: =DF27+43 -> 1992 | DH27: 2035
CV28: KERING (EX-PPR) | CX28: KERING (EX-PPR)- | DF28: 2078 | DG28: =DF28+43 -> 2121 | DH28: 2164
CV29: LAFARGE | CX29: LAFARGE- | DF29: 2207 | DG29: =DF29+43 -> 2250 | DH29: 2293
CV30: LEGRAND | CX30: LEGRAND- | DF30: 2336 | DG30: =DF30+43 -> 2379 | DH30: 2422
CV31: L'OREAL | CX31: L'OREAL- | DF31: 2465 | DG31: =DF31+43 -> 2508 | DH31: 2551
CV32: LVMH | CX32: LVMH- | DF32: 2594 | DG32: =DF32+43 -> 2637 | DH32: 2680
CV33: MICHELIN | CX33: MICHELIN- | DF33: 2723 | DG33: =DF33+43 -> 2766 | DH33: 2809
CV34: ORANGE (EX-FRANCE TELECOM) | CX34: ORANGE (EX-FRANCE TELECOM)- | DF34: 2852 | DG34: =DF34+43 -> 2895 | DH34: 2938
CV35: PERNOD RICARD | CX35: PERNOD RICARD- | DF35: 2981 | DG35: =DF35+43 -> 3024 | DH35: 3067
CV36: PEUGEOT | CX36: PEUGEOT- | DF36: 3110 | DG36: =DF36+43 -> 3153 | DH36: 3196
CV37: PUBLICIS | CX37: PUBLICIS- | DF37: 3239 | DG37: =DF37+43 -> 3282 | DH37: 3325
CV38: RENAULT | CX38: RENAULT- | DF38: 3368 | DG38: =DF38+43 -> 3411 | DH38: 3454
CV39: SAFRAN | CX39: SAFRAN- | DF39: 3497 | DG39: =DF39+43 -> 3540 | DH39: 3583
CV40: SAINT-GOBAIN | CX40: SAINT-GOBAIN- | DF40: 3626 | DG40: =DF40+43 -> 3669 | DH40: 3712
CV41: SANOFI | CX41: SANOFI- | DF41: 3755 | DG41: =DF41+43 -> 3798 | DH41: 3841
CV42: SCHNEIDER ELECTRIC | CX42: SCHNEIDER ELECTRIC- | DF42: 3884 | DG42: =DF42+43 -> 3927 | DH42: 3970
CV43: SOCIETE GENERALE | CX43: SOCIETE GENERALE- | DF43: 4013 | DG43: =DF43+43 -> 4056 | DH43: 4099
CV44: SOLVAY | CX44: SOLVAY- | DF44: 4142 | DG44: =DF44+43 -> 4185 | DH44: 4228
CV45: TECHNIP | CX45: TECHNIP- | DF45: 4271 | DG45: =DF45+43 -> 4314 | DH45: 4357
CV46: TOTAL | CX46: TOTAL- | DF46: 4400 | DG46: =DF46+43 -> 4443 | DH46: 4486
CV47: UNIBAIL-RODAMCO | CX47: UNIBAIL-RODAMCO- | DF47: 4529 | DG47: =DF47+43 -> 4572 | DH47: 4615
CV48: VALEO | CX48: VALEO- | DF48: 4658 | DG48: =DF48+43 -> 4701 | DH48: 4744
CV49: VEOLIA ENVIRONNEMENT | CX49: VEOLIA ENVIRONNEMENT- | DF49: 4787 | DG49: =DF49+43 -> 4830 | DH49: 4873
CV50: VINCI | CX50: VINCI- | DF50: 4916 | DG50: =DF50+43 -> 4959 | DH50: 5002
CV51: VIVENDI | CX51: VIVENDI- | DF51: 5045 | DG51: =DF51+43 -> 5088 | DH51: 5131
CQ53: Ouv Cac-Prem+
CQ54: Ouv Cac-Prem-
CQ55: Ouv Cac+Prem-
CQ56: Ouv Cac+Prem+ | CW56: =DP2 -> AIRBUS GROUP (EX-EADS) | DF56: 272 | DG56: 315 | DH56: 358
DC58: 4
DE60: 5

Sheet Feuil2

Sheet Feuil3

Sheet Feuil4

Sheet Feuil5
